[Event "Italian-ch Teams-B 2022"]
[Site "Montesilvano"]
[Date "2022.04.22"]
[Round "5.1"]
[White "David, Alberto"]
[Black "Lanzani, Mario"]
[Result "1-0"]
[ECO "B52"]
[WhiteElo "2550"]
[BlackElo "2266"]
[Annotator "TA"]
[PlyCount "73"]
[EventDate "2022.04.19"]
[EventType "team-tourn"]
[EventCountry "ITA"]
[SourceTitle "playchess.com"]
[Source "ChessBase"]
[SourceQuality "1"]
[TimeControl "40/5400+30:1800+30"]

{[%evp 10,73,15,12,28,6,8,11,15,10,22,15,7,0,22,8,16,11,18,22,33,29,23,11,24,11,16,18,32,26,53,53,53,50,121,134,139,130,129,129,193,187,184,188,181,175,164,168,177,181,184,162,190,189,194,183,195,191,188,196,217,218,228,220,200,207]} 1. e4 {[%emt 0:02:38]} c5 {[%emt 0:00:16]} 2. Nf3 {[%emt 0:00:08]} d6 {[%emt 0:00:12]} 3. Bb5+ {[%emt 0:01:10]} Bd7 {[%emt 0:00:25]} 4. Bxd7+ {[%emt 0:00:44]} Qxd7 {[%emt 0:00:18]} 5. c4 {[%emt 0:00:30]} Nc6 {[%emt 0:01:15]} 6. Nc3 {[%emt 0:03:34]} Nf6 {[%emt 0:02:19] B52: Sicilian: Moscow Variation with 3...Bd7.} 7. h3 {[%emt 0:08:49]} e6 {[%emt 0:02:39]} 8. O-O {[%emt 0:01:22]} Be7 {[%emt 0:00:31] The position is equal.} 9. d4 {[%emt 0:03:10]} cxd4 {[%emt 0:00:27]} 10. Nxd4 {[%emt 0:00:03]} O-O {[%emt 0:00:35] [#]} 11. b3 $146 {[%emt 0:01:32]} ({Predecessor:} 11. Be3 a6 12. Qe2 Rab8 13. Rfd1 Rfc8 14. Rac1 Nxd4 15. Bxd4 Qc6 16. b3 Kf8 17. e5 dxe5 18. Bxe5 {½-½ (30) Kendall,P (2080)-Donovan,N (2109) Sunningdale 2007}) 11... Rfd8 {[%emt 0:04:19]} 12. Nxc6 {[%emt 0:07:04]} Qxc6 {[%emt 0:01:36]} 13. Qe2 {[%emt 0:02:55]} b5 {[%emt 0:21:32]} 14. Nxb5 {[%emt 0:07:52]} Qxe4 {[%emt 0:02:04]} 15. Qxe4 {[%emt 0:02:23]} Nxe4 {[%emt 0:02:42]} 16. Be3 {[%emt 0:00:47]} Rd7 {[%emt 0:05:46]} 17. f3 {[%emt 0:06:05]} Nf6 {[%emt 0:01:49]} 18. Rac1 {[%emt 0:11:52]} a6 {[%emt 0:01:54]} 19. Nc3 {[%emt 0:02:51]} d5 {[%emt 0:02:39][%cal Bd6d5,Bd5d4][%mdl 32] And now ...d4 would win.} 20. Na4 {[%emt 0:08:50] Strongly threatening Nb6.} d4 {[%emt 0:01:51]} 21. Bf2 {[%emt 0:01:39] aiming for Nb6.} (21. Nb6 dxe3 $1 22. Nxa8 e2 $17) 21... Rdd8 {[%emt 0:15:45] White stays focused until the end.} (21... Re8 $14) 22. Rcd1 $1 $16 {[%emt 0:01:57]} e5 {[%emt 0:02:18]} 23. Rfe1 {[%emt 0:01:03]} Bd6 {[%emt 0:02:21]} 24. f4 {[%emt 0:01:35]} e4 {[%emt 0:01:57]} (24... exf4 $16 25. c5 (25. Rxd4 Bc7 $16) (25. Bxd4 Bb4 $16) 25... Bc7) 25. Bxd4 $18 {[%emt 0:04:05] White is clearly better.} Bxf4 {[%emt 0:00:45]} 26. Nb6 {[%emt 0:06:48]} Rab8 {[%emt 0:02:21]} 27. Bxf6 {[%emt 0:00:31]} Rxd1 {[%emt 0:01:33]} 28. Rxd1 {[%emt 0:00:02]} Be3+ {[%emt 0:00:30]} 29. Kf1 {[%emt 0:00:04]} Bxb6 {[%emt 0:00:26][%mdl 4096] Endgame KRB-KRB} 30. Be5 {[%emt 0:00:26][%cal Bf6e5,Be5g3,Bg3f2,Bf2d4][%mdl 32]} Re8 {[%emt 0:06:30]} 31. Rd5 {[%emt 0:00:12]} f6 {[%emt 0:01:35] [#]} 32. Bg3 {[%emt 0:03:15]} Rc8 {[%emt 0:04:39]} 33. Bf2 {[%emt 0:04:06] Prevents Rc5.} Bd8 {[%emt 0:04:13]} 34. Ke2 {[%emt 0:02:52]} Kf7 {[%emt 0:00:38]} 35. Bd4 {[%emt 0:01:33]} g6 {[%emt 0:02:13] [#]} 36. g4 $1 {[%emt 0:01:41]} Ke6 {[%emt 0:00:25]} 37. Ke3 {[%emt 0:00:10] Weighted Error Value: White=0.02 (flawless) /Black=0.11 (very precise)} 1-0

[Event "Italian-ch Teams-B 2022"]
[Site "Montesilvano"]
[Date "2022.04.22"]
[Round "5.1"]
[White "Caprio, Guido"]
[Black "Dervishi, Erald"]
[Result "0-1"]
[ECO "D58"]
[WhiteElo "2426"]
[BlackElo "2511"]
[Annotator "TA"]
[PlyCount "147"]
[EventDate "2022.04.19"]
[EventType "team-tourn"]
[EventCountry "ITA"]
[SourceTitle "playchess.com"]
[Source "ChessBase"]
[SourceQuality "1"]
[TimeControl "40/5400+30:1800+30"]

{[%evp 19,147,29,32,29,30,19,21,12,12,18,24,8,16,16,10,25,14,14,36,33,39,35,29,31,27,27,45,39,48,31,37,17,23,-15,-20,-55,-55,-55,-49,-51,-45,-50,0,0,0,0,480,8,8,8,8,17,49,0,0,0,0,0,0,-428,-420,-354,0,0,0,0,0,0,0,0,0,0,0,0,0,0,0,0,0,0,0,0,8,0,8,8,8,0,8,0,0,0,8,8,8,8,8,8,8,8,8,8,8,8,8,8,8,8,8,8,8,0,0,0,8,8,8,8,8,8,8,8,8,8,8,8,8,8,8,8]} 1. d4 {[%emt 0:05:41]} Nf6 {[%emt 0:01:38]} 2. c4 {[%emt 0:00:04]} e6 {[%emt 0:00:16]} 3. Nc3 {[%emt 0:00:05]} d5 {[%emt 0:00:09]} 4. cxd5 {[%emt 0:00:04]} exd5 {[%emt 0:00:06]} 5. Bg5 {[%emt 0:00:04]} Be7 {[%emt 0:00:29]} 6. e3 {[%emt 0:00:14]} O-O {[%emt 0:01:46]} 7. Bd3 {[%emt 0:00:18]} h6 {[%emt 0:01:01]} 8. Bh4 {[%emt 0:03:00]} b6 {[%emt 0:00:17]} 9. Nf3 {[%emt 0:01:25]} Bb7 {[%emt 0:04:01]} 10. O-O {[%emt 0:00:16]} Nbd7 {[%emt 0:00:22]} 11. Qb3 {[%emt 0:04:51] D58: Queen's Gambit Declined: Tartakower Defence.} c5 {[%emt 0:11:17] And now ...c4 would win.} 12. dxc5 {[%emt 0:00:07]} Nxc5 {[%emt 0:00:20]} 13. Qd1 {[%emt 0:00:15]} Nfe4 {[%emt 0:06:35]} 14. Bxe7 {[%emt 0:00:22]} Qxe7 {[%emt 0:00:05]} 15. Ne2 {[%emt 0:15:03]} Rac8 {[%emt 0:06:10]} 16. Ned4 {[%emt 0:29:07] [#]} Nxd3 $146 {[%emt 0:13:11]} ({Predecessor:} 16... Rfd8 17. Nf5 Qf6 18. N3d4 Nxd3 19. Qxd3 Nc5 20. Qd2 Ne4 21. Qe2 Rc5 22. Rfd1 Rdc8 {1-0 (55) Aggeletos,M (1769)-Aggelakis,I (1683) Hersonissos 2018}) 17. Qxd3 {[%emt 0:00:05]} Qb4 {[%emt 0:00:21]} 18. Qb3 {[%emt 0:13:27]} Qa5 {[%emt 0:09:14]} 19. Rfc1 {[%emt 0:04:40]} Rc5 {[%emt 0:06:10]} 20. Rxc5 {[%emt 0:02:55]} Qxc5 {[%emt 0:00:09]} 21. Ne5 {[%emt 0:01:41]} Rc8 {[%emt 0:00:30][%cal Oc5c1]} 22. Nd3 {[%emt 0:02:33] Inhibits Qc1+.} Qc4 {[%emt 0:08:34]} 23. Qd1 {[%emt 0:02:36]} Nc5 {[%emt 0:09:58][%cal Be4c5,Bc5e4,Be4c3,Bc3a2,Ba2c1][%mdl 32]} 24. Ne5 {[%emt 0:02:01]} Qb4 {[%emt 0:00:07]} 25. b3 {[%emt 0:01:45]} Ne4 {[%emt 0:01:44]} 26. Rc1 {[%emt 0:04:00]} Nc3 {[%emt 0:02:58]} 27. Qe1 {[%emt 0:01:47]} Nxa2 {[%emt 0:01:38]} 28. Rxc8+ {[%emt 0:00:22]} Bxc8 {[%emt 0:00:05][%cal Rb4e1]} 29. Qa1 {[%emt 0:00:23]} Qd2 {[%emt 0:04:44]} 30. Nec6 {[%emt 0:01:39]} Kh8 {[%emt 0:06:49]} (30... Bb7 $1 $15 31. Nxa7 Nc3) 31. Nxa7 $11 {[%emt 0:00:53] Pair of Knights!} Nc1 $40 {[%emt 0:00:10][%cal Rd2e1][%mdl 128] Black has some attack.} 32. h3 {[%emt 0:00:04]} Qe1+ {[%emt 0:04:29]} 33. Kh2 {[%emt 0:00:04]} Bxh3 {[%emt 0:00:01][%cal Oe1f1]} 34. Nf3 {[%emt 0:01:14]} (34. Kxh3 $2 Qh1+ 35. Kg3 Ne2+ $1 {[%mdl 512]} 36. Nxe2 Qxa1 $19) 34... Qxf2 {[%emt 0:00:06][%csl Gh3][%cal Rf2g2]} 35. Kxh3 {[%emt 0:00:07]} Ne2 {[%emt 0:00:48][%csl Ge2][%cal Rf2g3]} 36. Qe5 {[%emt 0:01:45] Prevents Qg3+.} (36. Qe1 $14 Qxe3 37. Nc6) 36... f6 {[%emt 0:00:02]} 37. Qe8+ {[%emt 0:02:16]} Kh7 {[%emt 0:00:04][%csl Ge2][%cal Rf2g3]} 38. Kh2 {[%emt 0:00:02]} Ng3 {[%emt 0:00:42] Really sharp!} 39. Kh3 $2 {[%emt 0:01:09][%mdl 8192] [#]} (39. Qb5 $11 {and White is okay.}) 39... Nf1 $1 $19 {[%emt 0:01:15][%csl Gf1][%cal Rf2g3]} 40. Qb8 {[%emt 0:00:03] [#] Prevents Qg3+.} Nxe3 $2 {[%emt 0:00:37]} (40... g5 $1 $19 41. Nc6 (41. Qc7+ $2 Kg6 $19) 41... g4+ 42. Kxg4 Qxg2+ 43. Kf5 Qxf3+ 44. Ke6 Qg4+ 45. Kd6 Nxe3 46. Qc7+ Kg6 47. Qxb6 Qe4) 41. Qg3 $11 {[%emt 0:30:22] The position is equal.} Qc2 {[%emt 0:31:10] Strongly threatening ...Qf5+.} 42. Ng5+ $1 {[%emt 0:00:21]} hxg5 {[%emt 0:00:00]} 43. Qxe3 {[%emt 0:00:00]} g4+ {[%emt 0:00:00][%mdl 64] Decoy} 44. Kxg4 {[%emt 0:00:00]} Qxg2+ {[%emt 0:00:00]} 45. Kf5 {[%emt 0:00:00]} Qg6+ {[%emt 0:00:00]} 46. Kf4 {[%emt 0:00:00]} Qh6+ {[%emt 0:00:00]} 47. Kf3 {[%emt 0:00:00]} Qh5+ {[%emt 0:00:00]} 48. Kg3 {[%emt 0:00:00]} Qg6+ {[%emt 0:00:00]} 49. Kf4 {[%emt 0:00:00]} Qh6+ {[%emt 0:00:00]} 50. Kf3 {[%emt 0:00:00]} Qh3+ {[%emt 0:00:00]} 51. Kf2 {[%emt 0:00:00]} Qh2+ {[%emt 0:00:00]} 52. Kf1 {[%emt 0:00:00]} Qh1+ {[%emt 0:03:09]} 53. Kf2 {[%emt 0:00:00]} Qh4+ {[%emt 0:00:20]} 54. Kg2 {[%emt 0:00:00]} Qg4+ {[%emt 0:00:17]} 55. Kh2 {[%emt 0:00:00]} d4 {[%emt 0:02:18]} 56. Qh3+ {[%emt 0:00:00]} Qxh3+ {[%emt 0:00:01]} 57. Kxh3 {[%emt 0:00:04][%mdl 4096] Endgame KN-KP} d3 {[%emt 0:00:07] ( -> ...d2)} 58. Nb5 {[%emt 0:00:04]} f5 {[%emt 0:00:04]} (58... d2 $5 59. Nc3 g5 $11) 59. Kg3 {[%emt 0:00:45]} g5 {[%emt 0:00:06]} (59... d2 $5 60. Nc3 Kg6 $11) 60. Kf3 {[%emt 0:02:07]} f4 {[%emt 0:00:01]} 61. Ke4 {[%emt 0:01:26]} d2 {[%emt 0:00:07]} 62. Nc3 {[%emt 0:00:03]} Kg6 {[%emt 0:00:29]} 63. Kd3 {[%emt 0:00:06]} Kf5 {[%emt 0:01:16]} 64. Kxd2 {[%emt 0:00:05] KN-K3P} g4 {[%emt 0:00:59]} 65. Nd5 {[%emt 0:03:53]} Ke4 {[%emt 0:00:57]} 66. Nxb6 {[%emt 0:00:55] KN-KPP} g3 {[%emt 0:00:22] aiming for ...g2.} 67. Ke2 {[%emt 0:01:48]} f3+ {[%emt 0:00:13]} 68. Kf1 {[%emt 0:00:03]} Kd4 {[%emt 0:02:46]} 69. Nc4 {[%emt 0:00:45]} Kc3 {[%emt 0:00:10]} 70. Ne5 {[%emt 0:00:09]} f2 {[%emt 0:00:11]} 71. Nf3 {[%emt 0:00:04]} Kxb3 {[%emt 0:00:06]} 72. Nh4 {[%emt 0:00:05]} Kc3 {[%emt 0:00:05]} 73. Nf5 {[%emt 0:00:06]} g2+ {[%emt 0:00:05]} 74. Kxf2 {[%emt 0:00:03][%mdl 32768] What a bad dream for Black.  Weighted Error Value: White=0.23 (precise) /Black=0.23 (precise) . Sensor Board Error (Ke4/e5)?} 0-1

[Event "Italian-ch Teams-B 2022"]
[Site "Montesilvano"]
[Date "2022.04.22"]
[Round "5.2"]
[White "Shytaj, Luca"]
[Black "Borgo, Giulio"]
[Result "1/2-1/2"]
[ECO "C00"]
[WhiteElo "2460"]
[BlackElo "2345"]
[Annotator "TA"]
[PlyCount "133"]
[EventDate "2022.04.19"]
[EventType "team-tourn"]
[EventCountry "ITA"]
[SourceTitle "playchess.com"]
[Source "ChessBase"]
[SourceQuality "1"]
[TimeControl "40/5400+30:1800+30"]

{[%evp 9,133,-8,47,29,54,0,0,0,11,0,0,-10,-10,0,0,0,0,-5,0,-11,15,0,4,21,26,14,30,-6,21,3,29,27,62,0,35,0,46,-28,-10,-97,-87,-120,-131,-235,-244,-234,-245,-228,-230,-245,-249,-250,-257,-243,-255,-244,-245,-246,-246,-231,-202,-201,-96,-110,-108,-99,-110,-196,-179,-178,-139,-141,-141,-122,-56,-56,-56,-135,-125,-146,-139,-146,-88,-227,-228,-189,-219,-393,-386,-439,-439,-564,-555,-556,-593,-510,-570,-548,-439,-617,-595,-673,-662,-645,-618,-472,-147,-552,0,-161,-64,-64,-64,-64,-64,-64,-64,-64,-64,-64,0,-52,0,-64,0,-52]} 1. e4 {[%emt 0:00:48]} e6 {[%emt 0:05:38]} 2. d3 {[%emt 0:02:05]} d5 {[%emt 0:03:30]} 3. Qe2 {[%emt 0:02:19]} Nf6 {[%emt 0:03:08]} 4. Nf3 {[%emt 0:02:47]} c5 {[%emt 0:03:05]} 5. g3 {[%emt 0:03:05]} g6 {[%emt 0:00:36]} (5... Be7 $11) 6. Bg2 $14 {[%emt 0:03:14] C00: French: Unusual White 2nd moves.} Bg7 {[%emt 0:01:03]} 7. O-O {[%emt 0:01:49]} (7. exd5 $1 $14 Nxd5 8. O-O) 7... O-O $11 {[%emt 0:00:54]} 8. e5 {[%emt 0:09:57]} Nfd7 {[%emt 0:00:57]} 9. c3 {[%emt 0:00:47]} b5 {[%emt 0:04:34] [#]} 10. h4 $146 {[%emt 0:02:57]} ({Predecessor:} 10. Bf4 a5 11. Re1 Nc6 12. h4 Ba6 13. Nbd2 Rb8 14. Nf1 b4 15. N1h2 Nb6 16. Bg5 {½-½ (28) Bonassi,T (2101)-Di Benedetto,E (2405) Cesenatico 2019}) 10... Nc6 {[%emt 0:02:32][%cal Rc6e5]} 11. Bf4 {[%emt 0:02:15]} a5 {[%emt 0:10:15]} 12. Nbd2 {[%emt 0:03:24]} a4 {[%emt 0:00:25]} 13. a3 {[%emt 0:00:15]} Ba6 {[%emt 0:08:11]} 14. Rfe1 {[%emt 0:02:58]} Rb8 {[%emt 0:08:39]} 15. Rac1 {[%emt 0:16:52]} Qb6 {[%emt 0:07:02]} 16. h5 {[%emt 0:06:39]} Rfe8 {[%emt 0:09:33]} 17. Qe3 {[%emt 0:09:26]} Ne7 {[%emt 0:12:35]} 18. g4 {[%emt 0:05:07]} b4 {[%emt 0:08:13][%cal Od5d4]} (18... d4 $5 19. cxd4 Nd5 $11) 19. c4 {[%emt 0:02:45]} bxa3 {[%emt 0:00:56]} 20. bxa3 {[%emt 0:00:04]} Qb2 {[%emt 0:02:25]} 21. Ra1 {[%emt 0:01:09]} (21. Bh6 $14) 21... Qc3 {[%emt 0:03:48][%cal Rd5c4]} 22. Rec1 {[%emt 0:06:42]} Qa5 {[%emt 0:00:19]} (22... Qb2 $11 {is more appropriate.}) 23. Ng5 {[%emt 0:02:05]} (23. h6 $14 Bf8 24. Rc2) 23... h6 {[%emt 0:02:25]} (23... gxh5 $5 {[%cal Rh7h6]} 24. cxd5 Nxd5 25. Bxd5 exd5 $11) 24. Ngf3 {[%emt 0:03:00]} (24. Nxf7 $11 {remains equal.} d4 25. Qh3 Kxf7 26. g5 Bxe5 27. Re1) 24... g5 {[%emt 0:01:04]} 25. Bg3 {[%emt 0:00:06][%cal Of3g5]} Rb2 {[%emt 0:00:17]} 26. Nf1 {[%emt 0:01:44]} (26. Qe2 $17) 26... d4 $1 $19 {[%emt 0:00:22]} 27. Qe1 {[%emt 0:00:50]} Qxe1 {[%emt 0:00:18]} 28. Rxe1 {[%emt 0:00:04]} Reb8 {[%emt 0:00:53]} 29. N1d2 {[%emt 0:00:27]} Bb7 {[%emt 0:00:24]} 30. Reb1 {[%emt 0:03:05]} Bxf3 {[%emt 0:00:13]} 31. Rxb2 {[%emt 0:00:03]} Rxb2 {[%emt 0:00:09]} 32. Nxf3 {[%emt 0:00:03]} Rb3 {[%emt 0:00:37]} 33. Bf1 {[%emt 0:00:56]} Nc6 {[%emt 0:00:36][%cal Rg7e5]} 34. Be2 {[%emt 0:00:20]} Ndxe5 {[%emt 0:01:10]} ({Don't blunder} 34... Ncxe5 $2 35. Ne1) ({Stronger than} 34... Bxe5 35. Bd1 Rb6 36. Kg2 $17) 35. Ne1 {[%emt 0:01:27]} Rb2 {[%emt 0:00:37]} (35... Rc3 $19 {and Black stays clearly on top.} 36. Kf1 Bf6) 36. Bd1 $17 {[%emt 0:00:30]} f5 {[%emt 0:00:35]} 37. gxf5 {[%emt 0:00:23]} exf5 {[%emt 0:00:03]} 38. Bxe5 {[%emt 0:00:15]} (38. f4 $17) 38... Nxe5 $19 {[%emt 0:00:28]} 39. Bxa4 {[%emt 0:00:08]} Bf6 {[%emt 0:00:56]} 40. Bc2 {[%emt 0:01:31]} Kf7 {[%emt 0:00:24]} 41. a4 {[%emt 0:30:53]} Bd8 {[%emt 0:22:54]} (41... g4 $17 42. a5 Rb7) 42. a5 $15 {[%emt 0:00:00] Prevents Rb6.} Rb7 {[%emt 0:00:51]} 43. a6 {[%emt 0:00:00]} (43. f4 $1 $15 Nc6 44. Ba4 Nxa5 45. Nf3) 43... Ra7 $17 {[%emt 0:03:14]} 44. Bd1 {[%emt 0:00:00]} g4 {[%emt 0:00:53] Inhibits Bf3.} 45. f3 {[%emt 0:00:00]} Kf6 {[%emt 0:00:48]} ({Black should try} 45... Bh4 $1 {[%cal Rh4e1]} 46. Kf1 Bxe1 47. Kxe1 Nxd3+ 48. Ke2 Ne5 49. fxg4 fxg4) 46. fxg4 {[%emt 0:00:00]} (46. Ng2 $17 {keeps fighting.}) 46... fxg4 $19 {[%emt 0:00:08]} 47. Be2 {[%emt 0:00:00]} Kg5 {[%emt 0:00:36]} 48. Ng2 $2 {[%emt 0:00:00]} (48. Bf1) 48... Bc7 {[%emt 0:01:32]} 49. Kf2 {[%emt 0:04:00]} Nc6 {[%emt 0:01:36]} 50. Rg1 {[%emt 0:01:36]} Bh2 {[%emt 0:00:57]} 51. Rh1 {[%emt 0:00:42]} Rf7+ {[%emt 0:00:40]} 52. Ke1 {[%emt 0:00:06]} Bg3+ {[%emt 0:00:24]} 53. Kd2 {[%emt 0:00:58]} Nb4 {[%emt 0:01:18]} 54. Rb1 {[%emt 0:01:08]} (54. Ra1 $142 Ra7 55. Ra5 Nxa6 56. Ne1) 54... Ra7 {[%emt 0:00:27]} 55. Rf1 {[%emt 0:00:19]} Rxa6 {[%emt 0:00:30]} 56. Rf8 {[%emt 0:00:11]} Ra2+ {[%emt 0:01:15]} 57. Kd1 {[%emt 0:00:06]} Ra1+ {[%emt 0:00:26]} 58. Kd2 {[%emt 0:00:05] [#]} Ra2+ $2 {[%emt 0:00:38]} (58... Rg1 $1 {[%cal Rg1g2]} 59. Rg8+ Kf6) 59. Kd1 {[%emt 0:00:00]} Nxd3 {[%emt 0:00:21]} 60. Rg8+ $15 {[%emt 0:00:00]} Kf6 {[%emt 0:00:04] Strongly threatening ...Nf2+.} 61. Bxd3 {[%emt 0:00:00] Be4 is the strong threat.} Rxg2 {[%emt 0:00:18]} 62. Rxg4 {[%emt 0:00:00] KRB-KRB} Rg1+ {[%emt 0:00:10]} 63. Ke2 {[%emt 0:00:18]} Re1+ {[%emt 0:00:28]} 64. Kd2 {[%emt 0:00:15]} Rg1 {[%emt 0:01:20] Hoping for ...Be1+.} 65. Ke2 {[%emt 0:00:32]} Re1+ {[%emt 0:00:25]} 66. Kd2 {[%emt 0:00:08]} Rg1 {[%emt 0:00:20] Threatens to win with ...Be1+.} 67. Ke2 {[%emt 0:00:14] And White is the lucky defender.  Weighted Error Value: White=0.30/Black=0.31} 1/2-1/2

[Event "Italian-ch Teams-B 2022"]
[Site "Montesilvano"]
[Date "2022.04.22"]
[Round "5.2"]
[White "Godena, Michele"]
[Black "Genocchio, Daniele"]
[Result "0-1"]
[ECO "B07"]
[WhiteElo "2442"]
[BlackElo "2358"]
[Annotator "TA"]
[PlyCount "119"]
[EventDate "2022.04.19"]
[EventType "team-tourn"]
[EventCountry "ITA"]
[SourceTitle "playchess.com"]
[Source "ChessBase"]
[SourceQuality "1"]
[TimeControl "40/5400+30:1800+30"]

{[%evp 16,119,73,22,37,16,50,49,52,53,44,29,36,32,25,25,34,42,43,42,38,37,28,12,17,20,99,99,78,79,95,66,114,0,0,0,95,17,31,35,173,23,49,0,101,55,29,0,124,0,50,0,0,-36,0,0,72,-241,-230,-227,-231,-206,-201,-726,-708,-932,-907,-856,-856,-944,-939,-939,-939,-702,-702,-860,-809,-1300,-1158,-1135,-1128,-1043,-968,-2070,-1668,-1995,-2036,-1964,-1952,-1873,-1704,-29977,0,-1143,0,-29974,-29976,-29976,-1795,-29974,-29975,-29983,-29983,-29985,-29986,-29974]} 1. e4 {[%emt 0:00:03]} g6 {[%emt 0:13:15]} 2. d4 {[%emt 0:00:24]} Bg7 {[%emt 0:00:27]} 3. c3 {[%emt 0:03:24]} d6 {[%emt 0:00:33]} 4. Nf3 {[%emt 0:00:08]} Nf6 {[%emt 0:00:22]} 5. Bd3 {[%emt 0:00:07]} O-O {[%emt 0:00:29]} 6. O-O {[%emt 0:00:17]} Nc6 {[%emt 0:00:21]} 7. h3 {[%emt 0:03:52]} e5 {[%emt 0:01:02]} 8. Re1 {[%emt 0:00:39]} Re8 {[%emt 0:02:56]} 9. Na3 {[%emt 0:01:58]} ({White should try} 9. d5 $16 Ne7 10. Be3) 9... h6 {[%emt 0:08:00] B07: Pirc Defence: Miscellaneous Systems.} 10. Nc2 {[%emt 0:05:25] 10.Nc2 has become a bit dusty these days.} Nh5 {[%emt 0:13:19]} 11. a3 {[%emt 0:34:37] [#]} a6 $146 {[%emt 0:08:23] White is slightly better.} ({Predecessor:} 11... a5 12. Bc4 Qf6 13. Ne3 Nf4 14. Nd5 Nxd5 15. exd5 Nb8 16. dxe5 dxe5 17. a4 Nd7 {0-1 (39) Barrenechea Bahamonde,G (2142)-Portela Peleteiro,A (2273) Linares 2015}) 12. Bd2 {[%emt 0:04:21]} Bd7 {[%emt 0:11:12]} 13. Rc1 {[%emt 0:05:02]} Nf4 {[%emt 0:18:51]} 14. Bxf4 {[%emt 0:09:27]} exf4 {[%emt 0:00:14]} 15. Nb4 {[%emt 0:04:28]} Ne7 {[%emt 0:04:27]} 16. Bc4 {[%emt 0:09:55]} b5 {[%emt 0:01:32]} 17. Ba2 {[%emt 0:00:31]} g5 {[%emt 0:03:44]} 18. e5 {[%emt 0:02:16]} a5 {[%emt 0:00:35]} 19. exd6 {[%emt 0:04:24]} cxd6 {[%emt 0:01:05]} 20. Nd5 {[%emt 0:00:35]} Nf5 {[%emt 0:06:58] Prevents h4.} (20... Rb8 $11) 21. Rxe8+ $16 {[%emt 0:01:24]} Bxe8 {[%emt 0:00:02]} 22. Qd3 {[%emt 0:00:33]} Bd7 {[%emt 0:00:15]} 23. Re1 {[%emt 0:02:13]} Kf8 {[%emt 0:00:50]} (23... Rb8 $1 $14 {should be considered.}) 24. c4 {[%emt 0:05:00]} (24. Nh2 $16) 24... bxc4 $11 {[%emt 0:01:08]} 25. Bxc4 {[%emt 0:00:12]} Rc8 {[%emt 0:01:40]} (25... a4 $11) 26. b3 {[%emt 0:00:44]} (26. b4 $1 $16) 26... Rb8 {[%emt 0:01:10]} 27. a4 {[%emt 0:00:39][%cal Ob3b4]} Be6 {[%emt 0:00:39] [#]} (27... Qc8 $14) 28. Nc3 {[%emt 0:00:53] Pair of Knights!} (28. Rxe6 $1 $18 {[%mdl 512]} fxe6 29. Qe4) 28... Bd7 {[%emt 0:00:17]} 29. Qe4 {[%emt 0:00:37]} (29. Bb5 $1 $14) 29... Qf6 {[%emt 0:00:37]} (29... Qc8 $11) 30. Nd5 {[%emt 0:00:11]} (30. Qd5 $16) 30... Qd8 $1 $14 {[%emt 0:00:26]} (30... Qe6 $2 31. Qd3 Qg6 32. Qd2 $18) 31. Nc3 {[%emt 0:00:50]} (31. Kh2 $11) 31... Qf6 $16 {[%emt 0:00:08]} 32. Nd5 {[%emt 0:00:35]} (32. Qd5 $1 $16) 32... Qd8 $1 $14 {[%emt 0:00:04]} (32... Qe6 $2 33. Qd3 Qg6 34. Qd2 $18) 33. h4 {[%emt 0:00:28]} (33. Kh2 $14) 33... g4 $11 {[%emt 0:00:59]} 34. Nh2 {[%emt 0:00:36]} Bxd4 {[%emt 0:00:57]} ({Don't take} 34... Qxh4 35. Nb6 $1 Qd8 36. Qd5 $1 $16 (36. Nxd7+ Qxd7 37. Qxf4 h5 $16)) (34... g3 $5 35. Nf3 gxf2+ 36. Kxf2 Bxd4+ 37. Nxd4 Qxh4+ 38. Kg1 (38. Kf3 $2 Qg3+ 39. Ke2 Re8 $19) 38... Re8 39. Nxf5 Qxe1+ 40. Qxe1 Rxe1+ 41. Kf2 Rd1 42. Nxh6 (42. Nxd6 $2 Bc6 $19) 42... Be6 43. Nxf4 Bxc4 44. bxc4 Rc1 $15) 35. Nxg4 {[%emt 0:00:32]} h5 {[%emt 0:00:21]} (35... Qxh4 $11 {remains equal.} 36. Qxf4 h5) 36. Nh2 $2 {[%emt 0:00:39][%mdl 8192] [#]} (36. Rd1 $16 {is necessary to keep the advantage.}) 36... Bxf2+ $1 $19 {[%emt 0:00:34][%mdl 512]} 37. Kxf2 {[%emt 0:00:07]} Qxh4+ {[%emt 0:00:01]} 38. Kg1 {[%emt 0:00:35] Threatens to win with Nf3.} Re8 {[%emt 0:00:16] The board is on fire.} 39. Qxe8+ {[%emt 0:00:47]} (39. Ne7 Qxe7 40. Qxe7+ Rxe7 41. Nf3) 39... Bxe8 {[%emt 0:00:07]} 40. Nf3 {[%emt 0:00:15]} Qg3 {[%emt 0:01:36]} 41. Re4 {[%emt 0:18:48]} Bc6 {[%emt 0:21:11] ...Bxd5 is the strong threat.} 42. Rxf4 {[%emt 0:09:43] [#]} Ne3 $1 {[%emt 0:00:37][%csl Ge3][%cal Rg3g2][%mdl 512]} 43. Rxf7+ {[%emt 0:00:23]} Kxf7 {[%emt 0:00:05][%csl Ge3][%cal Rg3g2]} 44. Nxe3+ {[%emt 0:00:03]} Ke8 {[%emt 0:03:20]} 45. Nf5 {[%emt 0:03:48]} Qf4 {[%emt 0:03:11]} 46. N3d4 {[%emt 0:00:22]} Bd7 {[%emt 0:02:32]} 47. Bb5 {[%emt 0:00:08]} Kd8 {[%emt 0:00:52]} 48. Bxd7 {[%emt 0:00:08]} Kxd7 {[%emt 0:00:08]} 49. g3 {[%emt 0:01:21]} Qd2 {[%emt 0:00:54]} 50. Kf1 {[%emt 0:00:20]} d5 {[%emt 0:01:14]} 51. Kg1 {[%emt 0:00:07]} Ke8 {[%emt 0:00:21]} 52. Kf1 {[%emt 0:01:03]} Kf7 {[%emt 0:00:26] ( -> ...Kf6)} 53. Kg1 {[%emt 0:00:23]} Ke8 {[%emt 0:00:03]} (53... Qe1+ $142 54. Kg2 Kf6 55. Kh2 Qf2+ 56. Kh3 Qf1+ 57. Kh2 Ke5 58. g4 hxg4 59. Kg3 Qh3+ 60. Kf2 g3+ 61. Nxg3 Kxd4 62. Nf1 Qxb3 63. Nh2 Qxa4 64. Nf3+ Kc5 65. Kg3 Qc2 66. Ng5 Qc3+ 67. Kh4 a4 68. Ne6+ Kd6 69. Ng5 a3 70. Kh5 a2 71. Nf7+ Kd7 72. Nh6 a1=Q 73. Ng4 Qg1 74. Nf6+ Kd8 75. Kh6 Qxf6+ 76. Kh7 Qh4#) 54. Kf1 $1 {[%emt 0:00:07]} Kf7 {[%emt 0:00:01]} (54... Qd3+ $19 55. Kf2 Kf7) 55. Kg1 {[%emt 0:00:05]} Kf6 {[%emt 0:00:58]} 56. Kf1 {[%emt 0:00:03]} Qh2 {[%emt 0:00:18]} (56... Qa2 $142 57. Kg1 Qb2 58. Kf1 Ke5 59. Kg1 Ke4 60. Kf1 Qd2 61. Kg1 {[#]} Qxd4+ $1 {[%mdl 512]} 62. Nxd4 Kxd4 63. Kg2 Kc3 64. Kh3 d4 65. g4 hxg4+ 66. Kxg4 d3 67. Kg5 Kxb3 68. Kh4 Kc4 69. Kh5 d2 70. Kg5 d1=Q 71. Kg6 Qg4+ 72. Kf7 Kd5 73. Kf6 Kd6 74. Kf7 Qg5 75. Kf8 Ke6 76. Ke8 Qg8#) 57. Ke1 {[%emt 0:00:55]} Qg2 {[%emt 0:00:29] Black mates.} 58. Kd1 {[%emt 0:01:06]} Qf2 {[%emt 0:00:18]} 59. Kc1 {[%emt 0:00:40]} Ke5 {[%emt 0:00:34]} 60. Kb1 {[%emt 0:00:12] Weighted Error Value: White=0.73/Black=0.29 (precise)} 0-1